Cogmind - Beta 16.1 @@@ ROGUE MODE // 2026.04.05 @ 09:03:03 Player: konomiyu Result: Destroyed by P-60 Hacker with Shock Rifle Performance ------------- Evolutions (3) 1500 Regions Visited (6) 1200 Robots Destroyed (80) 400 Value Destroyed (1619) 1619 Prototype IDs (19) 380 Alien Tech Used (0) 0 Bonus (63) 63 TOTAL SCORE: 5162 Bonus ------- High Alert Combat Kills 63 Cogmind --------- Core Integrity 0/700 Matter 166/300 Energy 75/100 System Corruption 11% Temperature Cool (0) Movement Core (50) Location -7/Factory Parts ------- > --- POWER (1) -------- (None) > --- PROPULSION (6) --- (None) > --- UTILITY (4) ------ Improved Signal Interpreter Transport Network Coupler > --- WEAPON (2) ------- (None) > --- INVENTORY (5) ---- Compact Wheel Improved Sensor Array System Shield Remote Datajack Chainsword Peak State ------------ > --- POWER ------------ Light Nuclear Core > --- PROPULSION ------- Improved Titanium Leg Cesium-ion Thruster Improved VTOL Module Improved VTOL Module Improved VTOL Module Improved VTOL Module > --- UTILITY ---------- Medium Storage Unit Structural Scanner Improved Sensor Array Improved Signal Interpreter > --- WEAPON ----------- Improved Datajack Chainsword > --- INVENTORY -------- Light Deuterium Engine Cooled Deuterium Engine Wheel Improved Heat Sink ECM Suite Hacking Suite System Shield Heavy Particle Gun Heavy Particle Gun Remote Datajack [Rating: 44] Favorites ----------- Power Ion Engine Engine Ion Engine Power Core Light Nuclear Core Propulsion Improved VTOL Module Treads Light Treads Leg Improved Titanium Leg Wheel Wheel Hover Unit Improved Hover Unit Flight Unit Improved VTOL Module Utility Medium Storage Unit Device Structural Scanner Storage Medium Storage Unit Processor Improved Signal Interpreter Protection Hardened Medium Armor Plating Weapon Medium Laser Energy Gun Medium Laser Special Weapon Mining Laser Impact Weapon Heavy Flail Slashing Weapon Chainsword Special Melee Weapon Improved Datajack Build | -11 -10 -10 -10 -9 -8 -7 ------- Run | Yrd Mat Min Exi Min Mat Fac Slots Evolved 6 | . . . . . 4 2 Power . | . . . . . . . Propulsion 4 | . . . . . 2 2 Utility 2 | . . . . . 2 . Weapon . | . . . . . . . Parts Attached 77 | 7 6 . 2 . 32 30 Power 8 | 1 . . . . 5 2 Engine 7 | 1 . . . . 4 2 Core 1 | . . . . . 1 . Reactor . | . . . . . . . Propulsion 31 | 2 2 . . . 13 14 Treads 8 | 1 1 . . . 3 3 Leg 1 | . . . . . . 1 Wheel 6 | 1 1 . . . 2 2 Hover 4 | . . . . . 3 1 Flight 12 | . . . . . 5 7 Utility 20 | 2 1 . 1 . 7 9 Device 11 | 1 . . . . 5 5 Storage 3 | 1 1 . 1 . . . Processor 3 | . . . . . 1 2 Hackware . | . . . . . . . Protection 3 | . . . . . 1 2 Artifact . | . . . . . . . Weapon 18 | 2 3 . 1 . 7 5 Energy Gun 11 | 2 . . . . 6 3 Energy Cannon . | . . . . . . . Ballistic Gun . | . . . . . . . Ballistic Cannon . | . . . . . . . Launcher . | . . . . . . . Special Weapon 3 | . 3 . . . . . Impact Weapon 1 | . . . . . 1 . Slashing Weapon 1 | . . . . . . 1 Piercing Weapon . | . . . . . . . Special Melee Weapon 2 | . . . 1 . . 1 Unidentified Prototypes 5 | . . . . . 4 1 Parts Lost 42 | . 1 . . . 10 31 Power 5 | . . . . . 2 3 Propulsion 24 | . 1 . . . 5 18 Utility 9 | . . . . . 2 7 Weapon 4 | . . . . . 1 3 Highest Loss Streak 15 | . 1 . . . 2 15 To Critical Strikes 1 | . . . . . . 1 Average Backups 8 | 3 7 9 10 10 9 8 Power 1 | . 1 1 1 1 1 1 Propulsion 1 | 1 1 2 2 2 1 . Utility 2 | . . 2 2 2 3 3 Weapon 2 | 1 2 3 4 4 2 1 Tool/Special . | . . . . . . . Unused Backups 11 | . 1 . . . 3 7 Power 1 | . . . . . . 1 Propulsion 1 | . . . . . . 1 Utility 5 | . 1 . . . . 4 Weapon 3 | . . . . . 3 . Tool/Special 1 | . . . . . . 1 Average Slot Usage (%) 87 | . 99 100 100 100 91 68 Engine 8 | . 14 14 14 14 7 4 Core 1 | . . . . . 1 1 Treads 9 | . 14 14 14 14 10 4 Wheel 7 | . 13 14 14 14 4 5 Hover 1 | . . . . . 3 . Flight 10 | . . . . . 16 15 Device 12 | . 14 14 14 14 13 10 Storage 9 | . 14 14 14 14 9 5 Processor 5 | . . . . . 8 5 Protection 1 | . . . . . 2 . Energy Gun 11 | . 25 14 6 24 11 3 Special Weapon 2 | . 2 14 14 2 . . Impact Weapon 1 | . . . . . 2 1 Slashing Weapon 1 | . . . . . . 3 Peak Build Rating 44 | 7 8 8 8 8 36 44 Average Rating 20 | 6 6 7 8 8 24 28 On Entrance 10 | . 7 7 8 8 8 32 Avg Prop Armor Cover (%) 16 | 5 11 12 12 13 20 22 Naked Turns . | . . . . . . . Heaviest Build 32 | 15 20 19 29 20 32 30 Greatest Support 56 | 20 20 10 10 10 22 56 Greatest Overweight (x) 3 | . 1 1 2 1 3 2 Average Overweight (x) . | . . 1 1 1 . . Largest Inventory Capacity 15 | 8 10 10 15 10 10 10 Average Capacity 9 | 7 8 10 10 10 10 9 Most Carried 11 | 5 10 10 11 10 10 10 Average Carried 8 | 3 7 9 10 10 9 8 Final Capacity 10 | 8 10 10 10 10 10 5 Final Carried 10 | 5 9 10 10 10 9 5 Class Distribution -------------------- 62% | Mutant 14% | Scout 7% | Skirmisher 6% | Scavenger-Mutant 3% | Scavenger-Skirmisher 3% | Sprinter Dominant Class ---------------- Mutant | -10/Materials Mutant | -10/Mines Mutant | -10/Exiles Mutant | -9/Mines Mutant | -8/Materials Mutant | -7/Factory Resources | -11 -10 -10 -10 -9 -8 -7 ----------- Run | Yrd Mat Min Exi Min Mat Fac Matter Collected 1301 | 270 30 30 . 50 780 141 Remotely . | . . . . . . . Salvage Created 2671 | 220 435 . . 56 1498 462 Parts 144 | 16 37 . . 6 72 13 Haulers Intercepted 8 | . 1 . . . 6 1 Recyclers Shooed 1 | . 1 . . . . . Parts Field Recycled . | . . . . . . . Retrieved Matter . | . . . . . . . Parts Self-Destructed . | . . . . . . . Prevented . | . . . . . . . Parts Restored . | . . . . . . . Kills | -11 -10 -10 -10 -9 -8 -7 ------- Run | Yrd Mat Min Exi Min Mat Fac Combat Hostiles Destroyed 46 | . 11 . . 3 29 3 Melee 2 | . . . . . 2 . Guns 39 | . 11 . . 3 22 3 Classes Destroyed 13 | 3 5 . . . 4 1 Worker 6 | 1 2 . . . 3 . Builder 3 | . 1 . . . 1 1 Tunneler 6 | 6 . . . . . . Hauler 8 | . 1 . . . 6 1 Recycler 3 | 1 . . . . . 2 Mechanic 1 | . . . . . 1 . Operator 2 | . . . . . 2 . Watcher 5 | . 2 . . . 2 1 Swarmer 22 | . 6 . . 3 13 . Grunt 17 | . 5 . . . 12 . Duelist 1 | . . . . . 1 . Sentry 5 | . . . . . 3 2 Programmer 1 | . . . . . . 1 Best Kill Streak 9 | 4 6 . . 3 9 2 Combat Bots Only 5 | . 3 . . 3 5 1 Max Kills in Single Turn 2 | 2 1 . . 1 2 1 Gunslinging 1 | . . . . . 1 . Exploded . | . . . . . . . Melee 1 | . . . . . 1 . Uniques/NPCs Destroyed . | . . . . . . . Combat | -11 -10 -10 -10 -9 -8 -7 -------- Run | Yrd Mat Min Exi Min Mat Fac Hostile Shots Fired 700 | . 42 . . 11 210 437 Missed 234 | . 5 . . 6 58 165 Hits 466 | . 37 . . 5 152 272 Melee 3 | . . . . . 3 . Projectile 463 | . 37 . . 5 149 272 Critical Strikes 14 | . . . . . 6 8 Damage Taken 5552 | . 326 . . 36 2103 3087 Core 1168 | . 66 . . . 391 711 Absorbed by Shields . | . . . . . . . Core Remaining (%) 67 | 100 . . . 73 28 . Volleys Fired 175 | 11 37 . . 5 102 20 Largest 2 | 2 2 . . 2 2 2 Hottest 124 | 100 100 . . 100 110 124 Shots Fired 325 | 22 73 . . 10 186 34 Gun 320 | 22 72 . . 10 182 34 Cannon . | . . . . . . . Launcher . | . . . . . . . Special 5 | . 1 . . . 4 . Kinetic . | . . . . . . . Thermal 318 | 22 73 . . 10 186 27 Explosive . | . . . . . . . Electromagnetic 7 | . . . . . . 7 Robot Hit Streak 17 | 6 7 . . 2 17 13 Robot Miss Streak 4 | 1 3 . . 3 4 3 Penetration Max . | . . . . . . . Secondary Targets 4 | . 3 . . . 1 . Max Gunslinging Chain 1 | . 1 . . . 1 . Shots Hit Robots 247 | 17 41 . 5 4 132 48 Core Hits 102 | 9 23 . . 3 56 11 Critical Kills . | . . . . . . . Critical Parts Destroyed 3 | . . . . . 2 1 Critical Strikes 21 | 2 2 . . 1 8 8 Burn 13 | 2 2 . . 1 6 2 Smash 3 | . . . . . 2 1 Sever 5 | . . . . . . 5 Melee Attacks 86 | . . . 5 . 28 53 Impact 42 | . . . . . 28 14 Slashing 36 | . . . . . . 36 Piercing . | . . . . . . . Sneak Attacks 18 | . . . 5 . 4 9 Combat Hostiles . | . . . . . . . Follow-up Attacks . | . . . . . . . Damage Inflicted 5018 | 223 529 . . 55 2832 1379 Guns 3048 | 223 529 . . 55 1823 418 Cannons . | . . . . . . . Explosions . | . . . . . . . Melee 1959 | . . . . . 1009 950 Ramming 11 | . . . . . . 11 Kinetic . | . . . . . . . Thermal 3036 | 223 529 . . 55 1823 406 Explosive . | . . . . . . . Electromagnetic 12 | . . . . . . 12 Impact 1198 | . . . . . 1009 189 Slashing 761 | . . . . . . 761 Piercing . | . . . . . . . Highest Corruption 11 | . . . . . 8 11 Average Corruption 6 | . . . . . 6 5 Corruption Purged . | . . . . . . . Corruption Blocked . | . . . . . . . Effects 64 | . . . . . 57 7 Message Errors 16 | . . . . . 14 2 Matter Fused 13 | . . . . . 13 . Heat Flow Errors 2 | . . . . . 2 . Energy Discharges 9 | . . . . . 8 1 Parts Rejected 1 | . . . . . 1 . Data Loss (minor) 10 | . . . . . 8 2 Data Loss (major) 2 | . . . . . 2 . Misfires 3 | . . . . . 3 . Alerts 2 | . . . . . 2 . Misdirections 2 | . . . . . . 2 Weapon Failures 4 | . . . . . 4 . Overload Shots . | . . . . . . . Overflow Damage 619 | . . . . . 391 228 Projectiles . | . . . . . . . Explosions . | . . . . . . . Melee 619 | . . . . . 391 228 Knockbacks 5 | . . . . . 5 . Impact 5 | . . . . . 5 . Kinetic . | . . . . . . . Secondary . | . . . . . . . Self-Inflicted Damage 5 | . . . . . . 5 Shots . | . . . . . . . Rammed 4 | . . . . . . 4 Targets Rammed 4 | . . . . . . 4 Kicked . | . . . . . . . Crushed . | . . . . . . . Highest Temperature 414 | 117 258 . . 117 414 132 Average Temperature 68 | 38 96 . . 54 83 19 Received Heat Transfer 975 | . 54 . . . 621 300 Effects 2 | . . . . . 2 . Shutdowns 1 | . . . . . 1 . Energy Bleed 1 | . . . . . 1 . Siege Activations . | . . . . . . . Martial Activations . | . . . . . . . Shielding Activations . | . . . . . . . Robots Disrupted . | . . . . . . . Combat Hostiles . | . . . . . . . Robots Corrupted 5 | . . . . . 5 . Combat Hostiles 2 | . . . . . 2 . Parts Fried 9 | . . . . . 9 . Impact Corruptions 14 | . . . . . 13 1 Robots Melted 3 | . . . . . 3 . Combat Hostiles 3 | . . . . . 3 . Parts Melted 26 | 2 1 . . 1 19 3 Heat Transferred 8473 | 814 1702 . . 222 4847 888 Parts Sabotaged . | . . . . . . . Parts Stolen . | . . . . . . . Parts Stripped . | . . . . . . . Power Chain Reactions . | . . . . . . . Alert | -11 -10 -10 -10 -9 -8 -7 ------- Run | Yrd Mat Min Exi Min Mat Fac Maximum Alert Level 3 | . . . . . 3 1 Low Security (%) 69 | 100 100 100 . 100 47 66 Level 1 18 | . . . . . 21 33 Level 2 11 | . . . . . 29 . Level 3 . | . . . . . . . Level 4 . | . . . . . . . Level 5 . | . . . . . . . High Security . | . . . . . . . Max Security . | . . . . . . . Peak Influence 724 | 10 164 37 . 90 724 330 Initial 329 | . 6 37 . . 27 329 Average 173 | 1 78 5 . 66 292 148 Influence Increases 2500 | 40 374 . . 130 1502 454 Destroy 0b10 Robot/C 920 | . 220 . . 60 580 60 Destroy 0b10 Robot/NC 170 | 40 30 . . . 75 25 Destroy Leader 206 | . 36 . . 10 126 34 Successful Hack 46 | . 12 . . . 6 28 Select Force Hacks 60 | . . . . . 30 30 Disable Machine 75 | . 15 . . . . 60 Destroy Structure 33 | . 1 . . . 10 22 Partial Spotted 150 | . . . . . 120 30 Lose Combat Pursuer 840 | . 60 . . 60 555 165 Influence Decreases 2479 | 30 286 98 . 60 848 1157 Entered New Map 503 | . 4 61 . . 43 395 Time Decay 1428 | 30 272 37 . 60 515 514 Search Patrol Dispatched 200 | . . . . . 200 . Lost Part 348 | . 10 . . . 90 248 Squads Dispatched 17 | . 1 . . . 7 9 Investigation 5 | . . . . . 3 2 Extermination 4 | . . . . . . 4 Reinforcement 8 | . 1 . . . 4 3 Assault . | . . . . . . . Garrison . | . . . . . . . Intercept . | . . . . . . . Searches Triggered 2 | . . . . . 2 . Construction Impeded . | . . . . . . . Haulers Reinforced . | . . . . . . . Active Scanning Responses . | . . . . . . . Cargo Convoy Interrupts . | . . . . . . . Stealth | -11 -10 -10 -10 -9 -8 -7 --------- Run | Yrd Mat Min Exi Min Mat Fac Distress Signals 11 | . 1 . . . 8 2 Communications Jammed . | . . . . . . . Distress Signals . | . . . . . . . Times Spotted 150 | . 18 . . 7 94 31 Peak Tracking Total 10 | . 5 . . 3 8 10 Tactical Retreats 28 | . 3 . . 2 17 6 Traps | -11 -10 -10 -10 -9 -8 -7 ------- Run | Yrd Mat Min Exi Min Mat Fac Traps Triggered 3 | . . . . . 2 1 Indirectly . | . . . . . . . Trap Hack Attempts 3 | . . . . . . 3 Triggered . | . . . . . . . Disarmed . | . . . . . . . Reprogrammed 1 | . . . . . . 1 Reused . | . . . . . . . Traps Extracted . | . . . . . . . Installed . | . . . . . . . Triggered . | . . . . . . . Machines | -11 -10 -10 -10 -9 -8 -7 ---------- Run | Yrd Mat Min Exi Min Mat Fac Machines Disabled 5 | . 1 . . . . 4 Max in Single Turn 1 | . 1 . . . . 1 Garrison Access 1 | . . . . . . 1 Machines Repaired . | . . . . . . . Machines Dismantled . | . . . . . . . Machines Sabotaged . | . . . . . . . Overloaded Fab Kills . | . . . . . . . Hacking | -11 -10 -10 -10 -9 -8 -7 --------- Run | Yrd Mat Min Exi Min Mat Fac Machines Accessed 17 | . 3 1 1 . 5 7 Terminals 11 | . 3 . . . 4 4 Fabricators . | . . . . . . . Repair Stations . | . . . . . . . Recycling Units 2 | . . . . . 1 1 Scanalyzers 1 | . . . . . . 1 Garrison Access 1 | . . . . . . 1 Total Hacks 35 | . 8 1 4 . 7 15 Successful 18 | . 2 1 4 . 2 9 Failed 17 | . 6 . . . 5 6 Catastrophic 3 | . . . . . 2 1 Database Lockouts . | . . . . . . . Manual 18 | . 8 . . . 7 3 Terminals 23 | . 8 . . . 6 9 Fabricators . | . . . . . . . Repair Stations . | . . . . . . . Recycling Units 2 | . . . . . 1 1 Scanalyzers 3 | . . . . . . 3 Garrison Access 2 | . . . . . . 2 Terminal Hacks 11 | . 2 1 4 . . 4 Record 6 | . . . 4 . . 2 Robot Analysis 2 | . 2 . . . . . Open Door 1 | . . 1 . . . . Recall Extermination 1 | . . . . . . 1 Registered Components 1 | . . . . . . 1 Fabricator Hacks . | . . . . . . . Repair Station Hacks . | . . . . . . . Recycling Unit Hacks . | . . . . . . . Scanalyzer 2 | . . . . . . 2 Insert Component 1 | . . . . . . 1 Analyze 1 | . . . . . . 1 Garrison Access Hacks 1 | . . . . . . 1 Seal Access 1 | . . . . . . 1 Unauthorized Hacks 4 | . . . . . 2 2 Terminals 2 | . . . . . 1 1 Assimilate 1 | . . . . . . 1 Operators 1 | . . . . . 1 . Fabricators . | . . . . . . . Repair Stations . | . . . . . . . Recycling Units 2 | . . . . . 1 1 Tunnel 2 | . . . . . 1 1 Scanalyzers . | . . . . . . . Garrison Access . | . . . . . . . Data Cores Recovered . | . . . . . . . Used . | . . . . . . . Hacking Detections 9 | . 2 . . . 3 4 Full Trace Events 4 | . 2 . . . 1 1 Feedback Events . | . . . . . . . Feedback Blocked . | . . . . . . . Robot Schematics Acquired . | . . . . . . . Robots Built . | . . . . . . . Authchips . | . . . . . . . Time . | . . . . . . . Total Robot Build Rating . | . . . . . . . Part Schematics Acquired 1 | . . . . . . 1 Parts Built . | . . . . . . . Authchips . | . . . . . . . Time . | . . . . . . . Total Part Build Rating . | . . . . . . . Part Studies Acquired . | . . . . . . . Parts Repaired . | . . . . . . . Time . | . . . . . . . Parts Recycled . | . . . . . . . Recycled Matter . | . . . . . . . Retrieved Matter . | . . . . . . . Retrieved Components . | . . . . . . . Parts Scanalyzed 1 | . . . . . . 1 Part Schematics Acquired 1 | . . . . . . 1 Parts Damaged . | . . . . . . . Bothacking | -11 -10 -10 -10 -9 -8 -7 ------------ Run | Yrd Mat Min Exi Min Mat Fac Used RIF Installer . | . . . . . . . Robots Hacked 6 | . . . 5 . . 1 Non-combat 4 | . . . 3 . . 1 Combat 2 | . . . 2 . . . Robot Hacks Applied 6 | . . . 5 . . 1 parse_system 5 | . . . 5 . . . find_recycling 1 | . . . . . . 1 Relay Couplers Released . | . . . . . . . Fabnet Peak Effective % . | . . . . . . . Robots Rewired . | . . . . . . . Allies Hacked . | . . . . . . . Hacks Repelled . | . . . . . . . Allies | -11 -10 -10 -10 -9 -8 -7 -------- Run | Yrd Mat Min Exi Min Mat Fac Total Allies . | . . . . . . . Largest Group . | . . . . . . . Highest-Rated Group . | . . . . . . . Highest-Rated Ally . | . . . . . . . Total Orders . | . . . . . . . Ally Attacks . | . . . . . . . Total Damage . | . . . . . . . Kills . | . . . . . . . Allies Corrupted . | . . . . . . . Allies Melted . | . . . . . . . Intel | -11 -10 -10 -10 -9 -8 -7 ------- Run | Yrd Mat Min Exi Min Mat Fac Active Infowar (turns) 4769 | 164 721 331 247 123 1736 1447 Sensors 2590 | . . . . . 1178 1412 Structural 2085 | . . . . . 1482 603 Seismic 1652 | 164 721 331 247 123 66 . T.N.C. 165 | . . . . . . 165 Robot Analysis Total 2 | . 2 . . . . . Derelict Logs Recovered 3 | . . 2 . 1 . . Drone Launches . | . . . . . . . Drone Recoveries . | . . . . . . . Exploration | -11 -10 -10 -10 -9 -8 -7 ------------- Run | Yrd Mat Min Exi Min Mat Fac Turns Passed 4899 | 237 721 331 247 123 1793 1447 Spaces Moved 4521 | 119 414 348 246 104 1463 1827 Core 108 | 1 . . . . . 107 Treads 166 | 118 36 . . . 12 . Legs 1 | . . . . . . 1 Wheels 1961 | . 378 348 246 104 388 497 Hover 122 | . . . . . 122 . Flight 2163 | . . . . . 941 1222 Fastest Speed 20 | 50 95 95 95 95 26 20 Average Speed 69 | 159 100 95 95 95 65 50 Slowest Speed 265 | 160 160 95 110 95 265 200 Overloaded Moves . | . . . . . . . Propulsion Burnouts . | . . . . . . . Robots Hopped 23 | . . . . . 15 8 Potential Cave-ins . | . . . . . . . Cave-ins Triggered 1 | . . . . . 1 . Exploration Rate (%) 47 | 5 55 73 57 27 64 48 Regions Visited 6 Branch Regions 3 Pre-discovered Areas 3 | . . . 1 . 1 1 Known Exits Taken 1 | . . . . . 1 . Unknown Exits Taken 5 | 1 1 1 1 1 . . Scrap Searched 2 | . . 2 . . . . Spaces Dug 30 | . . . . . 8 22 Terrain Destroyed 30 | . . . . . 8 22 Melee 26 | . . . . . 4 22 Projectile 4 | . . . . . 4 . AOE . | . . . . . . . Terrain Rammed . | . . . . . . . Walls Destroyed . | . . . . . . . Machines Disabled . | . . . . . . . Actions | -11 -10 -10 -10 -9 -8 -7 --------- Run | Yrd Mat Min Exi Min Mat Fac Total 5780 | 141 644 348 255 117 2042 2233 Wait 802 | . 174 . . 7 357 264 Move 4470 | 118 413 347 245 103 1432 1812 Hop 22 | . . . . . 15 7 Pick Up 35 | 5 8 1 1 . 11 9 Fast Attach 40 | 7 . . . . 10 23 Attach 32 | . 1 . . . 20 11 Detach 20 | . . . . . 15 5 Swap 60 | . 5 . 3 2 40 10 Drop 31 | . 6 . 1 . 12 12 Fire 175 | 11 37 . . 5 102 20 Melee 86 | . . . 5 . 28 53 Ram 4 | . . . . . . 4 Kick . | . . . . . . . Crush . | . . . . . . . Escape Stasis . | . . . . . . . Rewire . | . . . . . . . Trap 3 | . . . . . . 3 Miscellaneous . | . . . . . . . Route ------- -11/Scrapyard -10/Materials (discovered 3 exits: [*Mat x2] / *Min) -10/Mines (discovered 3 exits: [*Mat] / *Exi / [*Sub]) -10/Exiles -9/Mines -8/Materials (discovered 2 exits: *Fac x2) -7/Factory (discovered 1 exit: *Low) History --------- Turn | Location | Event 47 | -11/Scrapyard | Discovered new exit (range 15) 238 | -11/Scrapyard | Entered Materials 315 | -10/Materials | Build established: Mutant 452 | -10/Materials | Discovered new exit (range 16) 831 | -10/Materials | Discovered new exit (range 12) 904 | -10/Materials | Discovered new exit (range 10) 959 | -10/Materials | Entered Mines 965 | -10/Mines | Met a Derelict bent on vengeance 981 | -10/Mines | Learned 2 Materials zone layouts 1018 | -10/Mines | Received a Rocket Launcher from a helpful Derelict 1201 | -10/Mines | Discovered new exit (range 7) 1209 | -10/Mines | Learned location of 2 exits from Materials 1211 | -10/Mines | Found the Drone Emporium 1273 | -10/Mines | Assembled infested the area 1274 | -10/Mines | Discovered new exit (range 5) 1278 | -10/Mines | Assisted by a Guerilla fighting off Assembled 1286 | -10/Mines | Deemed a non-threat by the Exiles lab entrance 1286 | -10/Mines | Discovered new exit (range 5) 1290 | -10/Mines | Entered Exiles 1313 | -10/Exiles | Met 8R-AWN 1329 | -10/Exiles | Met EX-HEX 1390 | -10/Exiles | Met EX-DEC 1421 | -10/Exiles | Learned location of Zion (-6) 1442 | -10/Exiles | Met EX-BIN 1526 | -10/Exiles | Discovered new exit (range 14) 1537 | -10/Exiles | Entered Mines 1557 | -9/Mines | Learned Materials stockpile data 1655 | -9/Mines | Discovered new exit (range 4) 1660 | -9/Mines | Entered Materials 1660 | -8/Materials | Evolved 4 slots: Propulsion x2, Utility x2 1661 | -8/Materials | Identified exit to Factory 2126 | -8/Materials | Crushed by falling debris 2460 | -8/Materials | Search patrols dispatched 2756 | -8/Materials | Core integrity fell below 50% 3260 | -8/Materials | Search patrols dispatched 3436 | -8/Materials | Build established: Scout 3453 | -8/Materials | Entered Factory 3453 | -7/Factory | Evolved 2 slots: Propulsion x2 3839 | -7/Factory | Lost 3 parts (1p2n) 3890 | -7/Factory | Lost 5 parts (3n1u1w) 4148 | -7/Factory | Build established: Mutant 4354 | -7/Factory | Discovered new exit (range 10) 4363 | -7/Factory | Identified exit to Lower Caves 4669 | -7/Factory | Core integrity fell below 50% 4742 | -7/Factory | Lost 15 parts (2p9n3u1w) 4876 | -7/Factory | System corruption reached 10% 4880 | -7/Factory | Core integrity fell below 20% 4900 | -7/Factory | Destroyed by P-60 Hacker with Shock Rifle Last Messages --------------- reinforcements to Terminal F008. 04860_ K-01 Serf collects debris. 04865_ Imp. Sensor Array destroyed. 04866_ System corrupted: Component data lost. 04873_ K-01 Serf cleans the Neutrino Reactor. 04875_ K-01 Serf destroyed. 04875_ Slammed into P-60 Hacker. 04878_ Penetrated by Slug. 04882_ P0&RFXNAAIRH0X1VNV7Q8DGDQA4VBLQUV=& 04883_ Arm. Huge Wheel destroyed. 04886_ Slammed into K-01 Serf. 04888_ ALERT: Potential suspicious activity detected, Programmers report to Factory Zone 5K. 04888_ Slammed into K-01 Serf. 04894_ TF Node disabled. 04894_ Imp. Signal Interpreter tumbles out of TF Node. 04895_ Arm. Huge Wheel destroyed. 04898_ Acquired Imp. Signal Interpreter. Map ----- +----------------------------------------------------+ | ????? ? #?# #????????? ##????????????# #### | | ????? ?# #?# #??????????#?????????????# | | ?????# #?# #?# #????????????????????????# #### | | ?????# ### ### #????????????????????????# #??? | | ######+# # #????????????????????????# #??? | | # # ##+### ##??????????????????# #??? | | # + #?????????????# #??? | | # # ## ### ##??????????????????# # ? | | # # ## #?????????????????????????# # | | #| ## ### #?????????????????????????# # "" | | # ## #?#+#?????????????????????????+ # "" | | ######### ^#?????????????????????????????# # "" | | ????????# #?????????????????????????????# #### | | ??????### ###??????????????????????????? ???? | | ####### #?????????????#????????????# ### | | # ############# #????????????# | | # s #????????????# ### | | """ + ##### ####????????????????????# | | """ # #???#p#???????????????????????# | | """%!# ### ##???# #???????????????????????# | | * # #?# #????#s#???????????????????????# | | ##########+####?#+#????#s#????????????????[??????# | | ???????? ??????##s##??????????????????????# | | ?????? #### ######T #??????????????# | | ????" p +???????# | | ??#"T """" #### @#####+###??????????????# | | ??#"" """" #??##+##??????????????????????# | | ??#"" """" #??? ???????????????????????# | | ??# """" !!! #??? ???????????????????????? | | ??# ?? !!! #?? ! ??????????????????????? | | ??# ?????? !! #?? ??????????????????????? | | ??######???????#####??#####??????????????????????? | | | | | | | | | | | | | | | | | | | | | | | | | | | | | | | | | | | | | +----------------------------------------------------+ Best States ------------- Heat Dissipation 48 Energy Generation 18 Energy Capacity 310 Matter Stores 300 Matter Capacity 300 Sight Range 16 Robot Scan Range 15 Terrain Scan Density 10 Armor Coverage 450 Resistance: TH 15 Evasion (%) 66 Recoil Reduction 1 Item Schematics ----------------- Hacking Suite | -7/Factory | Scanalyzed Robot Schematics ------------------ None Fabricated ------------ Nothing Repaired ---------- Nothing Studied --------- None Alien Tech Used ----------------- None Achievements -------------- Can't Catch Me Suspicious Challenges ------------ None Game ------ Seed AerolevSurgeWand Manual? 0 Play Time 01:02:42 Cumulative 44.0 hours Start 2026.04.05 @ 08:01:54 End 2026.04.05 @ 09:03:03 Sessions 1 Manual Loads 0 Difficulty Rogue Special Mode None Game No. 45 Rogue 45 Adventurer 0 Explorer 0 Win Type - Total 0 Types 0/0/0/0/0/0/0/0/0/0 Lore% 35 Gallery% 28 Achievement% 23 Wizard Run 0 Options --------- Layout 1 ASCII 0 Keyboard 1 Movement Vi Keybinds 0 Fullscreen 2 Font 24/Smallcaps Map View 50x35 Zoom Use 0% Tactical HUD 1 Map Filters NONE Filters NONE Steam 1 RUN: e06eb95a-72bc-4b5c-a87f-11b024631504